DOCUMENT TYPE,ECFRS Ref,NOMINAL,Cost Centre,TYPE OF EXPENDITURE,DESCRIPTION,PROCESSING DATE,YEARCODE,PERIOD,VALUE,Analysis,Analysis Title,Cost Centre Desc,Department
PCAR,4008,4110,9210,Travelling Expenses,GREATER ANGLIA - RAIL MEETING,04/10/2016,2017,07,17.80 ,000210000000,Emergency Planning (Dept),Essex Civil Prot ECC,Emergency Planning (Dept)
PCAR,4009,4110,9103,Travelling Expenses,GREATER ANGLIA - RAIL MEETING,04/10/2016,2017,07,26.60 ,000000000000,Not Analysed,Operations,Operations
PCAR,4009,4111,9103,Subsistence Allowances,LION INN- DINNER WITH EAP MEMBER,04/10/2016,2017,07,47.90 ,000000000000,Not Analysed,Operations,Operations
PCAR,4009,4111,9103,Subsistence Allowances,HILTON - LUNCH REVIEW MTG,04/10/2016,2017,07,10.07 ,000000000000,Not Analysed,Operations,Operations
PCAR,4009,4110,9103,Travelling Expenses,LONDON&SOUTH EAST- RAIL REVIEW,04/10/2016,2017,07,22.60 ,000000000000,Not Analysed,Operations,Operations
PCAR,4010,6899,9053,Miscellaneous Expenses,MAKSTEY PET FOODS - DOG FOOD ,04/10/2016,2017,07,88.50 ,000014000000,014 USAR,Operations - USAR,014 USAR
PCAR,4011,4019,9201,Community Safety,BEEFEATER - CATERING CADET MTG,12/10/2016,2017,07,77.61 ,000000000003,Youth Schemes,Community Safety,Community Safety
PCAR,4011,4019,9201,Community Safety,McDONALDS - CATERING D OF E,12/10/2016,2017,07,14.12 ,000000000003,Youth Schemes,Community Safety,Community Safety
PCAR,4011,4019,9201,Community Safety,WATERLOO INN - CATERING D OF E,12/10/2016,2017,07,51.62 ,000000000003,Youth Schemes,Community Safety,Community Safety
PCAR,4011,4019,9201,Community Safety,WATERLOO INN - ACCOM D OF E,12/10/2016,2017,07,203.33 ,000000000003,Youth Schemes,Community Safety,Community Safety
PCAR,4011,4019,9201,Community Safety,TESCO - FUEL D OF E,12/10/2016,2017,07,50.00 ,000000000003,Youth Schemes,Community Safety,Community Safety
PCAR,4011,4019,9201,Community Safety,WELCOME BREAK- CATERING D OF E,12/10/2016,2017,07,13.32 ,000000000003,Youth Schemes,Community Safety,Community Safety
PCAR,4011,4019,9201,Community Safety,ARGOS - EQUIPMENT FIREBREAK,12/10/2016,2017,07,62.48 ,000000000003,Youth Schemes,Community Safety,Community Safety
PCAR,4011,4019,9201,Community Safety,SAINSBURYS- CATERING FIREBREAK,12/10/2016,2017,07,75.11 ,000000000003,Youth Schemes,Community Safety,Community Safety
PCAR,4011,4019,9201,Community Safety,McDONALDS - CATERING FIREBREAK,12/10/2016,2017,07,8.30 ,000000000003,Youth Schemes,Community Safety,Community Safety
PCAR,4011,4019,9201,Community Safety,TESCO - CATERING FIREBREAK,12/10/2016,2017,07,30.29 ,000000000003,Youth Schemes,Community Safety,Community Safety
PCAR,4011,4019,9201,Community Safety,TESCO - CATERING FIREBREAK,12/10/2016,2017,07,24.70 ,000000000003,Youth Schemes,Community Safety,Community Safety
PCAR,4011,4019,9201,Community Safety,TESCO - CATERING FIREBREAK,12/10/2016,2017,07,50.43 ,000000000003,Youth Schemes,Community Safety,Community Safety
PCAR,4011,4019,9201,Community Safety,SAINSBURYS- CATERING FIREBREAK,12/10/2016,2017,07,79.00 ,000000000003,Youth Schemes,Community Safety,Community Safety
PCAR,4012,4019,9201,Community Safety,ALLEY CATS - VAN RENTAL D OF E,12/10/2016,2017,07,245.00 ,000000000003,Youth Schemes,Community Safety,Community Safety
PCAR,4013,4112,9100,Conferences & Seminars,ABBEY HOTEL- ACCOM X 4 ES SHOW,12/10/2016,2017,07,766.67 ,000000000000,Not Analysed,Service Leadership Team,Service Leadership Team
PCAR,4013,4112,9100,Conferences & Seminars,ABBEY HOTEL- ACCOM X 4 ES SHOW,12/10/2016,2017,07,-766.67 ,000000000000,Not Analysed,Service Leadership Team,Service Leadership Team
PCAR,4013,B217,9402,Payments in Advance,ABBEY HOTEL- ACCOM X 4 ES SHOW,12/10/2016,2017,07,766.67 ,000000000000,Not Analysed,Finance & Pay,Finance & Pay
PCAR,4014,4111,9210,Subsistence Allowances,PREMIER INN - ACCOM SEMINAR,12/10/2016,2017,07,76.65 ,000210000000,Emergency Planning (Dept),Essex Civil Prot ECC,Emergency Planning (Dept)
PCAR,4014,4110,9210,Travelling Expenses,OPODO - FLIGHTS SEMINAR,12/10/2016,2017,07,106.26 ,000210000000,Emergency Planning (Dept),Essex Civil Prot ECC,Emergency Planning (Dept)
PCAR,4014,4110,9210,Travelling Expenses,GREATER ANGLIA - RAIL MEETING,12/10/2016,2017,07,43.50 ,000210000000,Emergency Planning (Dept),Essex Civil Prot ECC,Emergency Planning (Dept)
PCAR,4014,4110,9210,Travelling Expenses,HX PAYMENTS - PARKING SEMINAR,12/10/2016,2017,07,35.00 ,000210000000,Emergency Planning (Dept),Essex Civil Prot ECC,Emergency Planning (Dept)
PCAR,4014,6899,9210,Miscellaneous Expenses,WYEVALE - OFFICE PLANTS,12/10/2016,2017,07,32.87 ,000210000000,Emergency Planning (Dept),Essex Civil Prot ECC,Emergency Planning (Dept)
PCAR,4014,4130,9210,Hospitality & Entertaining,TIPTREE SHOP - JAM GIFT SETS,12/10/2016,2017,07,45.80 ,000210000000,Emergency Planning (Dept),Essex Civil Prot ECC,Emergency Planning (Dept)
PCAR,4014,4110,9210,Travelling Expenses,EASYJET - PRE BOOK SEATS COST,12/10/2016,2017,07,8.06 ,000210000000,Emergency Planning (Dept),Essex Civil Prot ECC,Emergency Planning (Dept)
PCAR,4014,4110,9210,Travelling Expenses,RYANAIR - PRE BOOK SEATS,12/10/2016,2017,07,12.24 ,000210000000,Emergency Planning (Dept),Essex Civil Prot ECC,Emergency Planning (Dept)
PCAR,4015,4111,9103,Subsistence Allowances,SUBWAY - LUNCH 4i PROJECT,12/10/2016,2017,07,11.71 ,000102000000,Control (Dept),Operations,Control (Dept)
PCAR,4015,4111,9103,Subsistence Allowances,JUST EAT - DINNER 4i PROJECT,12/10/2016,2017,07,50.90 ,000102000000,Control (Dept),Operations,Control (Dept)
PCAR,4015,4111,9103,Subsistence Allowances,SUBWAY - LUNCH 4i PROJECT,12/10/2016,2017,07,20.28 ,000102000000,Control (Dept),Operations,Control (Dept)
PCAR,4015,4111,9103,Subsistence Allowances,JUST EAT - DINNER 4i PROJECT,12/10/2016,2017,07,64.70 ,000102000000,Control (Dept),Operations,Control (Dept)
PCAR,4015,4111,9103,Subsistence Allowances,JUST EAT - DINNER 4i PROJECT,12/10/2016,2017,07,30.00 ,000102000000,Control (Dept),Operations,Control (Dept)
PCAR,4015,4111,9103,Subsistence Allowances,LITTLE INDIA-DINNER 4i PROJECT,12/10/2016,2017,07,108.20 ,000102000000,Control (Dept),Operations,Control (Dept)
PCAR,4015,4111,9103,Subsistence Allowances,SUBWAY - LUNCH 4i PROJECT,12/10/2016,2017,07,29.68 ,000102000000,Control (Dept),Operations,Control (Dept)
PCAR,4016,4110,9103,Travelling Expenses,GREATER ANGLIA - RAIL FRIC MTG,12/10/2016,2017,07,60.60 ,000100000000,Service Leadership Team,Operations,Service Leadership Team
PCAR,4017,6899,9053,Miscellaneous Expenses,K9 HYDRO - CANINE PHYSIO ,12/10/2016,2017,07,45.00 ,000014000000,014 USAR,Operations - USAR,014 USAR
PCAR,4018,4111,9103,Subsistence Allowances,PREMIER INN - ACCOM FOR SHOW,13/10/2016,2017,07,156.65 ,000301000000,Technical Services (Dept),Operations,Technical Services (Dept)
PCAR,4018,4111,9103,Subsistence Allowances,PREMIER INN- ACCOM PPE PROJECT,13/10/2016,2017,07,173.32 ,000301000000,Technical Services (Dept),Operations,Technical Services (Dept)
PCAR,4019,4019,9201,Community Safety,WITHAN HAND WASH - CAR WASH,13/10/2016,2017,07,18.00 ,000000000004,Ford Sim & car,Community Safety,Community Safety
PCAR,4019,4019,9201,Community Safety,DINOS - FIRE CAR WASH,13/10/2016,2017,07,7.00 ,000000000004,Ford Sim & car,Community Safety,Community Safety
PCAR,4019,4019,9201,Community Safety,SCREWFIX DIRECT - DRILL,13/10/2016,2017,07,100.00 ,000000000007,Community Wheels & RTC Reduction,Community Safety,Community Safety
PCAR,4019,4019,9201,Community Safety,AIRSO - MOTORCYCLE CONFERENCE,13/10/2016,2017,07,154.00 ,000000000007,Community Wheels & RTC Reduction,Community Safety,Community Safety
PCAR,4019,4019,9201,Community Safety,JURYS INN HOTEL - EVENING MEAL,13/10/2016,2017,07,22.29 ,000000000007,Community Wheels & RTC Reduction,Community Safety,Community Safety
PCAR,4020,4019,9201,Community Safety,LOCAL WORLD - AWARDS 3 TICKETS,13/10/2016,2017,07,240.00 ,000000000003,Youth Schemes,Community Safety,Community Safety
PCAR,4021,4110,9103,Travelling Expenses,GREATER ANGLIA - RAIL MEETING,13/10/2016,2017,07,31.80 ,000209000000,Corporate Risk & Business Continuity (Dept),Operations,Corporate Risk & Business Continuity (Dept)
PCAR,4021,4110,9103,Travelling Expenses,GREATER ANGLIA-RAIL CONFERENCE,13/10/2016,2017,07,63.20 ,000209000000,Corporate Risk & Business Continuity (Dept),Operations,Corporate Risk & Business Continuity (Dept)
PCAR,4021,4111,9103,Subsistence Allowances,TRAVELODGE- ACCOM CFOA MEETING,13/10/2016,2017,07,45.28 ,000209000000,Corporate Risk & Business Continuity (Dept),Operations,Corporate Risk & Business Continuity (Dept)
PCAR,4022,4019,9201,Community Safety,DELORME INREACH-TRACKER USEAGE,13/10/2016,2017,07,104.00 ,000000000003,Youth Schemes,Community Safety,Community Safety
PCAR,4022,4019,9201,Community Safety,DELORME INREACH-TRACKER USEAGE,13/10/2016,2017,07,27.82 ,000000000003,Youth Schemes,Community Safety,Community Safety
PCAR,4022,4019,9201,Community Safety,BEEFEATER - CATERING MEETINGS,13/10/2016,2017,07,48.69 ,000000000003,Youth Schemes,Community Safety,Community Safety
PCAR,4022,4019,9201,Community Safety,DELORME INREACH-TRACKER USEAGE,13/10/2016,2017,07,27.82 ,000000000003,Youth Schemes,Community Safety,Community Safety
PCAR,4023,4111,9304,Subsistence Allowances,PREMIER INN - ACCOM COURSE,13/10/2016,2017,07,152.06 ,000000000808,Training - Water,Training,Training
PCAR,4023,4112,9304,Conferences & Seminars,PUBLIC SECTOR - CONFERENCE,13/10/2016,2017,07,50.00 ,000000000813,Training - L&D Panel,Training,Training
PCAR,4024,4111,9103,Subsistence Allowances,PREMIER INN - ACCOM,13/10/2016,2017,07,119.99 ,000100000000,Service Leadership Team,Operations,Service Leadership Team
PCAR,4024,4111,9103,Subsistence Allowances,PREMIER INN - REFUND ACCOM,13/10/2016,2017,07,-119.99 ,000100000000,Service Leadership Team,Operations,Service Leadership Team
PCAR,4024,4111,9103,Subsistence Allowances,PREMIER INN - REFUND ACCOM,13/10/2016,2017,07,-131.65 ,000100000000,Service Leadership Team,Operations,Service Leadership Team
PCAR,4025,4112,9304,Conferences & Seminars,CFOA - CONFERENCE FEES,13/10/2016,2017,07,450.00 ,000504000000,Human Resources (Dept),Training,Human Resources (Dept)
PCAR,4025,4111,9103,Subsistence Allowances,LINER HOTEL - ACCOM CONFERENCE,13/10/2016,2017,07,171.02 ,000504000000,Human Resources (Dept),Operations,Human Resources (Dept)
PCAR,4025,4110,9103,Travelling Expenses,TRAINLINE - RAIL CONFERENCE,13/10/2016,2017,07,192.78 ,000504000000,Human Resources (Dept),Operations,Human Resources (Dept)
PCAR,4026,4110,9103,Travelling Expenses,CHELMSFORD BC - PARKING MTG,13/10/2016,2017,07,4.50 ,000100000000,Service Leadership Team,Operations,Service Leadership Team
PCAR,4026,4110,9103,Travelling Expenses,PARKEON BETA - PARKING EVENT,13/10/2016,2017,07,5.83 ,000100000000,Service Leadership Team,Operations,Service Leadership Team
PCAR,4027,4005,9505,IT Consumables,AMAZON - WIRELESS PRESENTER,13/10/2016,2017,07,108.10 ,000505000070,ICT - Consumables Hardware,ICT,ICT - Consumables Hardware
PCAR,4027,4005,9505,IT Consumables,AMAZON- TV WALL MOUNT BRACKETS,13/10/2016,2017,07,67.55 ,000505000070,ICT - Consumables Hardware,ICT,ICT - Consumables Hardware
PCAR,4027,2040,9505,IT Maintenance and Contracts,THAWTE - SOFTWARE RENEWAL,13/10/2016,2017,07,674.92 ,000505000064,ICT - IT Dept Software Maint,ICT,ICT - IT Dept Software Maint
PCAR,4027,2040,9505,IT Maintenance and Contracts,TV LICENSING - TV LICENCE ICT,13/10/2016,2017,07,145.50 ,000000000081,TV Licensing,ICT,ICT
PCAR,4027,2510,9505,IT Communications,J2 EFAX - EFA SUBSCRIPTION,13/10/2016,2017,07,15.00 ,000505000076,ICT - Communications Voice,ICT,ICT - Communications Voice
PCAR,4028,4111,9103,Subsistence Allowances,PREMIER INN - ACCOM & MEAL MTG,18/10/2016,2017,07,98.32 ,000014000000,014 USAR,Operations,014 USAR
PCAR,4028,4111,9103,Subsistence Allowances,SUBWAY - LUNCH NUG SWAH MTG,18/10/2016,2017,07,5.54 ,000014000000,014 USAR,Operations,014 USAR
PCAR,4028,4111,9304,Subsistence Allowances,PREMIER INN - ACCOM & MEAL ,18/10/2016,2017,07,105.82 ,000014000000,014 USAR,Training,014 USAR
PCAR,4028,4111,9103,Subsistence Allowances,PREMIER INN - ACCOM & MEAL MTG,18/10/2016,2017,07,87.49 ,000014000000,014 USAR,Operations,014 USAR
PCAR,4028,4111,9304,Subsistence Allowances,PREMIER INN - ACCOM & MEAL,18/10/2016,2017,07,79.99 ,000014000000,014 USAR,Training,014 USAR
PCAR,4029,4111,9103,Subsistence Allowances,BEEFEATER - DINNER EMERG SHOW,18/10/2016,2017,07,26.47 ,000304000000,Training (Dept),Operations,Training (Dept)
PCAR,4029,4111,9103,Subsistence Allowances,PREMIER INN - ACCOM EMERG SHOW,18/10/2016,2017,07,86.66 ,000304000000,Training (Dept),Operations,Training (Dept)
PCAR,4029,4111,9103,Subsistence Allowances,PREMIER INN - ACCOM EMERG SHOW,18/10/2016,2017,07,86.66 ,000304000000,Training (Dept),Operations,Training (Dept)
PCAR,4029,4111,9103,Subsistence Allowances,ROADCHEF - LUNCH EMERG SHOW,18/10/2016,2017,07,9.54 ,000304000000,Training (Dept),Operations,Training (Dept)
PCAR,4029,4130,9304,Hospitality & Entertaining,MM GLOBAL - TEA CUPS & TEAPOTS,18/10/2016,2017,07,52.19 ,000304000000,Training (Dept),Training,Training (Dept)
PCAR,4030,4019,9201,Community Safety,ASDA - CATERING D OF E EXPED,20/10/2016,2017,07,49.51 ,000000000003,Youth Schemes,Community Safety,Community Safety
PCAR,4030,4019,9201,Community Safety,LIDL - CATERING D OF E EXPED,20/10/2016,2017,07,17.47 ,000000000003,Youth Schemes,Community Safety,Community Safety
PCAR,4030,4019,9201,Community Safety,GO OUTDOORS - WATERPROOFS,20/10/2016,2017,07,6.40 ,000000000003,Youth Schemes,Community Safety,Community Safety
PCAR,4030,4019,9201,Community Safety,MANDALE CAMPSITE - CAMP FEES ,20/10/2016,2017,07,148.50 ,000000000003,Youth Schemes,Community Safety,Community Safety
PCAR,4030,4019,9201,Community Safety,WATERLOO INN-EVE MEALS D OF E,20/10/2016,2017,07,61.71 ,000000000003,Youth Schemes,Community Safety,Community Safety
PCAR,4030,4019,9201,Community Safety,McDONALDS - BREAKFAST D OF E,20/10/2016,2017,07,5.15 ,000000000003,Youth Schemes,Community Safety,Community Safety
PCAR,4030,4019,9201,Community Safety,BOOTS - INSOLES D OF E,20/10/2016,2017,07,5.41 ,000000000003,Youth Schemes,Community Safety,Community Safety
PCAR,4030,4019,9201,Community Safety,WELCOME BREAK - EVE MEAL,20/10/2016,2017,07,16.56 ,000000000003,Youth Schemes,Community Safety,Community Safety
PCAR,4030,4019,9201,Community Safety,K & H - DIESEL HIRE VEHICLE ,20/10/2016,2017,07,57.50 ,000000000003,Youth Schemes,Community Safety,Community Safety
PCAR,4030,4019,9201,Community Safety,CO OP - CATERING INDUCTION ,20/10/2016,2017,07,16.76 ,000000000003,Youth Schemes,Community Safety,Community Safety
PCAR,4031,4111,9103,Subsistence Allowances,SAINSBURYS - LUNCHES EXERCISE,20/10/2016,2017,07,15.03 ,000014000000,014 USAR,Operations,014 USAR
PCAR,4032,4111,9103,Subsistence Allowances,SWAN & SYGNET - DINNER ANGLOCO,20/10/2016,2017,07,8.26 ,000400000000,Workshops Management (Dept),Operations,Workshops Management (Dept)
PCAR,4032,4111,9103,Subsistence Allowances,MOTO - COFFEE ANGLOCO,20/10/2016,2017,07,2.96 ,000400000000,Workshops Management (Dept),Operations,Workshops Management (Dept)
PCAR,4032,4111,9103,Subsistence Allowances,MOTO - LUNCH ANGLOCO,20/10/2016,2017,07,3.75 ,000400000000,Workshops Management (Dept),Operations,Workshops Management (Dept)
PCAR,4032,4111,9103,Subsistence Allowances,MOTO - LUNCH ANGLOCO,20/10/2016,2017,07,8.97 ,000400000000,Workshops Management (Dept),Operations,Workshops Management (Dept)
PCAR,4032,4111,9103,Subsistence Allowances,CAFE ROUGE - LUNCHES MTG,20/10/2016,2017,07,21.42 ,000400000000,Workshops Management (Dept),Operations,Workshops Management (Dept)
PCAR,4032,4111,9103,Subsistence Allowances,SAINSBURYS-LUNCH DATALOG CHECK,20/10/2016,2017,07,3.22 ,000400000000,Workshops Management (Dept),Operations,Workshops Management (Dept)
PCAR,4032,4111,9103,Subsistence Allowances,SAINSBURYS - LUNCH CALLOUT,20/10/2016,2017,07,4.46 ,000400000000,Workshops Management (Dept),Operations,Workshops Management (Dept)
PCAR,4033,4110,9103,Travelling Expenses,NCP - PARKING PAS MEETING,21/10/2016,2017,07,3.50 ,000000000026,Seminars/conferences,Operations,Operations
PCAR,4033,2902,9103,Legal Expenses,LAND REGISTRY - SEARCH FEE,21/10/2016,2017,07,3.00 ,000000000021,Legal Services,Operations,Operations
PCAR,4033,2902,9103,Legal Expenses,LAND REGISTRY - SEARCH FEE,21/10/2016,2017,07,3.00 ,000000000021,Legal Services,Operations,Operations
PCAR,4033,2902,9103,Legal Expenses,LAND REGISTRY - SEARCH FEE,21/10/2016,2017,07,3.00 ,000000000021,Legal Services,Operations,Operations
PCAR,4033,2902,9103,Legal Expenses,LAND REGISTRY - SEARCH FEE,21/10/2016,2017,07,3.00 ,000000000021,Legal Services,Operations,Operations
PCAR,4033,4111,9103,Subsistence Allowances,ASPENS BAR - EVE MEAL CFOA MTG,21/10/2016,2017,07,14.79 ,000000000027,IFE Registration Fee,Operations,Operations
PCAR,4033,4111,9103,Subsistence Allowances,MONSOON - EVE MEAL CFOA MTG ,21/10/2016,2017,07,16.21 ,000000000027,IFE Registration Fee,Operations,Operations
PCAR,4034,4111,9103,Subsistence Allowances,LION INN - ACCOM EAP MEMBER,21/10/2016,2017,07,75.00 ,000000000197,Expert Advisory Panel,Operations,Operations
PCAR,4034,4111,9103,Subsistence Allowances,H10 HOTEL - ROOM HIRE FARRG,21/10/2016,2017,07,450.00 ,000100000000,Service Leadership Team,Operations,Service Leadership Team
PCAR,4035,4008,9104,Media Expenses,SURVEYMONKEY- ANNUAL SUBSCRIPT,25/10/2016,2017,07,167.26 ,000104000000,Communications & Media (Dept),Corporate Comms,Communications & Media (Dept)
PCAR,4035,4021,9201,Home Safety,AMAZON - MOUNT & CHARGER,25/10/2016,2017,07,9.51 ,000201000000,Community Safety (Dept),Community Safety,Community Safety (Dept)
PCAR,4035,4111,9304,Subsistence Allowances,PREMIER INN - ACCOM TRAINING ,25/10/2016,2017,07,270.00 ,000505000000,ICT (Dept),Training,ICT (Dept)
PCAR,4035,4111,9103,Subsistence Allowances,PREMIER INN - ACCOM FIREBREAK,25/10/2016,2017,07,184.98 ,000201000000,Community Safety (Dept),Operations,Community Safety (Dept)
PCAR,4035,4111,9304,Subsistence Allowances,PREMIER INN - ACCOM COURSE,25/10/2016,2017,07,255.83 ,000505000000,ICT (Dept),Training,ICT (Dept)
PCAR,4035,4111,9103,Subsistence Allowances,PREMIER INN - ACCOM FIREBREAK,25/10/2016,2017,07,794.93 ,000201000000,Community Safety (Dept),Operations,Community Safety (Dept)
PCAR,4035,4008,9104,Media Expenses,CHARTEREDIN - PRIDE DINNER,25/10/2016,2017,07,208.00 ,000104000000,Communications & Media (Dept),Corporate Comms,Communications & Media (Dept)
PCAR,4035,6822,9104,Ceremonies,AURA DESIGN - FLOWERS X 10,25/10/2016,2017,07,160.00 ,000104000000,Communications & Media (Dept),Corporate Comms,Communications & Media (Dept)
PCAR,4035,2017,9401,Canteen Equipment,CURRYS - FREEZER CONTROL,25/10/2016,2017,07,404.15 ,000102000000,Control (Dept),Catering,Control (Dept)
PCAR,4035,1499,9405,Furniture and Fittings,PLASTIC ID-SIGNATURE STRIP CRD,25/10/2016,2017,07,42.50 ,000405000000,Property Dept,Property Services,Property Dept
PCAR,4035,4015,8100,Community Commanders Funds,TV LICENSING - TV LICENCE W73,25/10/2016,2017,07,145.50 ,000073000000,073 Waltham Abbey,West Area Command,073 Waltham Abbey
PCAR,4035,4015,8200,Community Commanders Funds,TV LICENSING - TV LICENCE E35,25/10/2016,2017,07,145.50 ,000035000000,035 Rayleigh Weir,East Area Command,035 Rayleigh Weir
PCAR,4036,4009,9208,Operational Support Costs,PREMIER INN - MEAL DEAL UKRO,25/10/2016,2017,07,74.99 ,000000000191,UKRO - 2015/16,Emergency Planning & Civil Protection,Emergency Planning & Civil Protection
PCAR,4036,4009,9208,Operational Support Costs,PREMIER INN - MEAL DEAL UKRO,25/10/2016,2017,07,74.99 ,000000000191,UKRO - 2015/16,Emergency Planning & Civil Protection,Emergency Planning & Civil Protection
PCAR,4036,4009,9208,Operational Support Costs,PREMIER INN - MEAL DEAL UKRO,25/10/2016,2017,07,74.99 ,000000000191,UKRO - 2015/16,Emergency Planning & Civil Protection,Emergency Planning & Civil Protection
PCAR,4036,4009,9208,Operational Support Costs,PREMIER INN - MEAL DEAL UKRO,25/10/2016,2017,07,74.99 ,000000000191,UKRO - 2015/16,Emergency Planning & Civil Protection,Emergency Planning & Civil Protection
PCAR,4036,2030,9301,Operational Equipment Support,CIRCUIT SPEIALIST - KEYROLL,25/10/2016,2017,07,54.49 ,000035000000,035 Rayleigh Weir,Technical Services,035 Rayleigh Weir
PCAR,4036,4019,9201,Community Safety,REALLY USEFUL - BOX 64LTR,25/10/2016,2017,07,22.97 ,000000000001,Museum,Community Safety,Community Safety
PCAR,4036,4037,9202,Fire Prevention Support,TESTER - STICK & SOCKET TESTER,25/10/2016,2017,07,815.60 ,000000000022,Fire Investigation,Workplace Safety,Workplace Safety
PCAR,4036,4111,9103,Subsistence Allowances,WINSFORD LODGE - ACCOM MTG,25/10/2016,2017,07,91.00 ,000201000000,Community Safety (Dept),Operations,Community Safety (Dept)
PCAR,4036,4111,9103,Subsistence Allowances,PREMIER INN - ACCOM OPS MTG,25/10/2016,2017,07,81.66 ,000201000000,Community Safety (Dept),Operations,Community Safety (Dept)
PCAR,4036,4111,9103,Subsistence Allowances,PREMIER INN - ACCOM DRONE MTG,25/10/2016,2017,07,132.48 ,000201000000,Community Safety (Dept),Operations,Community Safety (Dept)
PCAR,4036,2087,9204,Water Services,VICKING METAL - METAL DETECTOR,25/10/2016,2017,07,87.08 ,000204000000,Water Services (Dept),Water Services,Water Services (Dept)
PCAR,4037,4111,9103,Subsistence Allowances,PREMIER INN - ACCOM UKRO CHAL,26/10/2016,2017,07,311.64 ,000000000191,UKRO - 2015/16,Operations,Operations
PCAR,4037,4111,9103,Subsistence Allowances,TABLE TABLE - SUBSISTENCE UKRO,26/10/2016,2017,07,25.00 ,000000000191,UKRO - 2015/16,Operations,Operations
PCAR,4037,4111,9304,Subsistence Allowances,HOLIDAY INN - ACCOM RTC COURSE,26/10/2016,2017,07,64.12 ,000000000191,UKRO - 2015/16,Training,Training
PCAR,4038,4110,9304,Travelling Expenses,TRAINLINE-RAIL TRAINING COURSE,26/10/2016,2017,07,121.00 ,000505000000,ICT (Dept),Training,ICT (Dept)
PCAR,4039,6899,9210,Miscellaneous Expenses,B&Q - GREEN OFFICE PLANTS,26/10/2016,2017,07,73.68 ,000210000000,Emergency Planning (Dept),Essex Civil Prot ECC,Emergency Planning (Dept)
PCAR,4040,4111,9103,Subsistence Allowances,FIELDHEAD HOTEL - ACCOM & MEAL,26/10/2016,2017,07,80.89 ,000400000000,Workshops Management (Dept),Operations,Workshops Management (Dept)
PCAR,4041,4019,9201,Community Safety,PAYPAL - OVEN CLEANING SERVICE,26/10/2016,2017,07,45.00 ,000000000125,Oven Cleaning,Community Safety,Community Safety
PCAR,4041,4019,9201,Community Safety,PAYPAL - OVEN CLEANING SERVICE,26/10/2016,2017,07,95.00 ,000000000125,Oven Cleaning,Community Safety,Community Safety
PCAR,4041,4019,9201,Community Safety,PAYPAL - OVEN CLEANING SERVICE,26/10/2016,2017,07,60.00 ,000000000125,Oven Cleaning,Community Safety,Community Safety
PCAR,4041,4019,9201,Community Safety,PAYPAL - OVEN CLEANING SERVICE,26/10/2016,2017,07,55.00 ,000000000125,Oven Cleaning,Community Safety,Community Safety
PCAR,4041,4019,9201,Community Safety,PAYPAL - OVEN CLEANING SERVICE,26/10/2016,2017,07,60.00 ,000000000125,Oven Cleaning,Community Safety,Community Safety
PCAR,4041,4019,9201,Community Safety,PAYPAL - OVEN CLEANING SERVICE,26/10/2016,2017,07,45.00 ,000000000125,Oven Cleaning,Community Safety,Community Safety
PCAR,4041,4019,9201,Community Safety,PAYPAL - OVEN CLEANING SERVICE,26/10/2016,2017,07,70.00 ,000000000125,Oven Cleaning,Community Safety,Community Safety
PCAR,4041,4019,9201,Community Safety,PAYPAL - OVEN CLEANING SERVICE,26/10/2016,2017,07,60.00 ,000000000125,Oven Cleaning,Community Safety,Community Safety
PCAR,4041,4019,9201,Community Safety,PAYPAL - OVEN CLEANING SERVICE,26/10/2016,2017,07,45.00 ,000000000125,Oven Cleaning,Community Safety,Community Safety
PCAR,4041,4019,9201,Community Safety,PAYPAL - OVEN CLEANING SERVICE,26/10/2016,2017,07,60.00 ,000000000125,Oven Cleaning,Community Safety,Community Safety
PCAR,4041,4019,9201,Community Safety,PAYPAL - OVEN CLEANING SERVICE,26/10/2016,2017,07,55.00 ,000000000125,Oven Cleaning,Community Safety,Community Safety
PCAR,4041,4019,9201,Community Safety,PAYPAL - OVEN CLEANING SERVICE,26/10/2016,2017,07,55.00 ,000000000125,Oven Cleaning,Community Safety,Community Safety
PCAR,4041,4019,9201,Community Safety,PAYPAL - OVEN CLEANING SERVICE,26/10/2016,2017,07,45.00 ,000000000125,Oven Cleaning,Community Safety,Community Safety
PCAR,4041,4019,9201,Community Safety,PAYPAL - OVEN CLEANING SERVICE,26/10/2016,2017,07,70.00 ,000000000125,Oven Cleaning,Community Safety,Community Safety
PCAR,4041,4019,9201,Community Safety,PAYPAL - OVEN CLEANING SERVICE,26/10/2016,2017,07,70.00 ,000000000125,Oven Cleaning,Community Safety,Community Safety
PCAR,4041,4019,9201,Community Safety,PAYPAL - OVEN CLEANING SERVICE,26/10/2016,2017,07,45.00 ,000000000125,Oven Cleaning,Community Safety,Community Safety
PCAR,4041,4019,9201,Community Safety,PAYPAL - OVEN CLEANING SERVICE,26/10/2016,2017,07,45.00 ,000000000125,Oven Cleaning,Community Safety,Community Safety
PCAR,4041,4019,9201,Community Safety,PAYPAL - OVEN CLEANING SERVICE,26/10/2016,2017,07,55.00 ,000000000125,Oven Cleaning,Community Safety,Community Safety
PCAR,4041,4019,9201,Community Safety,PAYPAL - OVEN CLEANING SERVICE,26/10/2016,2017,07,55.00 ,000000000125,Oven Cleaning,Community Safety,Community Safety
PCAR,4041,4019,9201,Community Safety,PAYPAL - OVEN CLEANING SERVICE,26/10/2016,2017,07,70.00 ,000000000125,Oven Cleaning,Community Safety,Community Safety
PCAR,4041,4019,9201,Community Safety,PAYPAL - OVEN CLEANING SERVICE,26/10/2016,2017,07,55.00 ,000000000125,Oven Cleaning,Community Safety,Community Safety
PCAR,4041,4019,9201,Community Safety,PAYPAL - OVEN CLEANING SERVICE,26/10/2016,2017,07,70.00 ,000000000125,Oven Cleaning,Community Safety,Community Safety
PCAR,4041,4019,9201,Community Safety,PAYPAL - OVEN CLEANING SERVICE,26/10/2016,2017,07,60.00 ,000000000125,Oven Cleaning,Community Safety,Community Safety
PCAR,4041,4019,9201,Community Safety,PAYPAL - OVEN CLEANING SERVICE,26/10/2016,2017,07,55.00 ,000000000125,Oven Cleaning,Community Safety,Community Safety
PCAR,4041,4019,9201,Community Safety,PAYPAL - OVEN CLEANING SERVICE,26/10/2016,2017,07,70.00 ,000000000125,Oven Cleaning,Community Safety,Community Safety
PCAR,4041,4019,9201,Community Safety,PAYPAL - OVEN CLEANING SERVICE,26/10/2016,2017,07,45.00 ,000000000125,Oven Cleaning,Community Safety,Community Safety
PCAR,4041,4019,9201,Community Safety,PAYPAL - OVEN CLEANING SERVICE,26/10/2016,2017,07,70.00 ,000000000125,Oven Cleaning,Community Safety,Community Safety
PCAR,4041,4019,9201,Community Safety,PAYPAL - OVEN CLEANING SERVICE,26/10/2016,2017,07,45.00 ,000000000125,Oven Cleaning,Community Safety,Community Safety
PCAR,4041,4019,9201,Community Safety,PAYPAL - OVEN CLEANING SERVICE,26/10/2016,2017,07,45.00 ,000000000125,Oven Cleaning,Community Safety,Community Safety
PCAR,4041,4019,9201,Community Safety,PAYPAL - OVEN CLEANING SERVICE,26/10/2016,2017,07,55.00 ,000000000125,Oven Cleaning,Community Safety,Community Safety
PCAR,4041,4019,9201,Community Safety,PAYPAL - OVEN CLEANING SERVICE,26/10/2016,2017,07,45.00 ,000000000125,Oven Cleaning,Community Safety,Community Safety
PCAR,4042,4111,9304,Subsistence Allowances,COSTA - REFRESHMENTS ISAR,26/10/2016,2017,07,9.41 ,000014000000,014 USAR,Training,014 USAR
PCAR,4042,4111,9304,Subsistence Allowances,MOTO - 2 X BREAKFASTS ISAR,26/10/2016,2017,07,17.23 ,000014000000,014 USAR,Training,014 USAR
PCAR,4042,4111,9304,Subsistence Allowances,ROADCHEF - 2 X LUNCHES ISAR,26/10/2016,2017,07,17.57 ,000014000000,014 USAR,Training,014 USAR
PCAR,4042,4111,9304,Subsistence Allowances,MOTO - 2 X EVE MEALS ISAR,26/10/2016,2017,07,12.19 ,000014000000,014 USAR,Training,014 USAR
PCAR,4042,6899,9053,Miscellaneous Expenses,KINFAUNS VETS - VET SERVICES,26/10/2016,2017,07,67.37 ,000014000000,014 USAR,Operations - USAR,014 USAR
PCAR,4043,4019,9201,Community Safety,HALFORDS - CLEANING PRODUCTS,26/10/2016,2017,07,64.00 ,000000000007,Community Wheels & RTC Reduction,Community Safety,Community Safety
PCAR,4043,4019,9201,Community Safety,WAITHAM CAR WASH - FIRE CAR,26/10/2016,2017,07,48.00 ,000000000007,Community Wheels & RTC Reduction,Community Safety,Community Safety
PCAR,4043,4019,9201,Community Safety,BALGORES MOTORS- ALLOY REPAIRS,26/10/2016,2017,07,566.14 ,000000000007,Community Wheels & RTC Reduction,Community Safety,Community Safety
PCAR,4043,4019,9201,Community Safety,HALFORDS - CLEANING PRODUCTS,26/10/2016,2017,07,23.75 ,000000000007,Community Wheels & RTC Reduction,Community Safety,Community Safety
PCAR,4043,4019,9201,Community Safety,ARGOS - LAPTOP SPEAKERS,26/10/2016,2017,07,33.32 ,000000000007,Community Wheels & RTC Reduction,Community Safety,Community Safety
PCAR,4044,4110,9103,Travelling Expenses,PARKEON BETA - PARKING MEETING,26/10/2016,2017,07,3.75 ,000505000000,ICT (Dept),Operations,ICT (Dept)
PCAR,4044,4110,9103,Travelling Expenses,CHELMSFORD BC- PARKING MEETING,26/10/2016,2017,07,3.00 ,000505000000,ICT (Dept),Operations,ICT (Dept)
PCAR,4045,4111,9103,Subsistence Allowances,QUALITY HOTEL - ACCOMMODATION,26/10/2016,2017,07,225.00 ,000303000000,Health & Safety (Dept),Operations,Health & Safety (Dept)
PCAR,4045,4110,9103,Travelling Expenses,GREATER ANGLIA - RAIL FARE,26/10/2016,2017,07,20.70 ,000303000000,Health & Safety (Dept),Operations,Health & Safety (Dept)
PCAR,4045,4110,9103,Travelling Expenses,CHELMSFORD BC - PARKING,26/10/2016,2017,07,8.33 ,000303000000,Health & Safety (Dept),Operations,Health & Safety (Dept)
PCAR,4045,4006,9303,Health & Safety,OSHCR LTD - MEMBERSHIP COST ,26/10/2016,2017,07,70.00 ,000303000000,Health & Safety (Dept),Health & Safety,Health & Safety (Dept)
PCAR,4046,4111,9103,Subsistence Allowances,HUNGRY HORSE - EVE MEAL X 2,26/10/2016,2017,07,14.99 ,000201000000,Community Safety (Dept),Operations,Community Safety (Dept)
PCAR,4046,4111,9103,Subsistence Allowances,WINSFORD LODGE - BREAKFAST X 2,26/10/2016,2017,07,10.83 ,000201000000,Community Safety (Dept),Operations,Community Safety (Dept)
PCAR,4047,2012,9210,Office/Admin Equipment (incl copiers),999INKS - PRINTERHEAD PLOTTER,26/10/2016,2017,07,62.18 ,000210000000,Emergency Planning (Dept),Essex Civil Prot ECC,Emergency Planning (Dept)
PCAR,4048,4111,9103,Subsistence Allowances,PREMIER INN - ACCOM,28/10/2016,2017,07,121.67 ,000100000000,Service Leadership Team,Operations,Service Leadership Team
PCAR,4049,4111,9103,Subsistence Allowances,BIS - FOOD DCLG MEETING,28/10/2016,2017,07,9.65 ,000208000000,Resilience (Dept),Operations,Resilience (Dept)
PCAR,4049,4110,9103,Travelling Expenses,TFL - TRAVEL DCLG MEETING,28/10/2016,2017,07,10.00 ,000208000000,Resilience (Dept),Operations,Resilience (Dept)
PCAR,4049,4110,9103,Travelling Expenses,TFL - TRAVEL DCLG MEETING,28/10/2016,2017,07,10.00 ,000208000000,Resilience (Dept),Operations,Resilience (Dept)
PCAR,4050,4110,9103,Travelling Expenses,GREATER ANGLIA - RAIL,28/10/2016,2017,07,31.80 ,000100000000,Service Leadership Team,Operations,Service Leadership Team
PCAR,4050,4111,9103,Subsistence Allowances,THE LION INN - FOOD,28/10/2016,2017,07,220.82 ,000100000000,Service Leadership Team,Operations,Service Leadership Team
PCAR,4051,4110,9103,Travelling Expenses,LON & SE RAIL - TRAVEL,28/10/2016,2017,07,11.80 ,000100000000,Service Leadership Team,Operations,Service Leadership Team
PCAR,4051,4111,9103,Subsistence Allowances,TRAVELODGE - ACCOM,28/10/2016,2017,07,159.17 ,000100000000,Service Leadership Team,Operations,Service Leadership Team
PCAR,4052,4111,9304,Subsistence Allowances,ROYAL ADELAIDE- ACCOM TRAINING,31/10/2016,2017,07,165.00 ,000103000000,Operations (Dept),Training,Operations (Dept)
PCAR,4053,4110,9103,Travelling Expenses,M6 TOLL - TOLL FEE CHARGE,31/10/2016,2017,07,5.50 ,000103000000,Operations (Dept),Operations,Operations (Dept)
PCAR,4053,4110,9103,Travelling Expenses,M6 TOLL - TOLL FEE CHARGE,31/10/2016,2017,07,5.50 ,000103000000,Operations (Dept),Operations,Operations (Dept)
